fUSD/lending_fUSD_20260315
["ID","MTS","AMOUNT","RATE_DAILY","PERIOD"]
[408386693,1773540182344,300.0,0.00012498,2]
[408386694,1773540182936,150.0,0.00012498,2]
[408386695,1773540185861,214.85236077,0.00012498,2]
[408386696,1773540198434,2684.11653499,0.000124,2]
[408386697,1773540198455,4963.04203544,0.000124,2]
[408386698,1773540213630,36.96796456,0.00012498,2]
[408386699,1773540213654,1163.03203544,0.00012498,2]
[408386700,1773540226357,157.84,9.615e-05,2]
[408386701,1773540226599,157.84,0.00010576,2]
[408386702,1773540227012,157.84,0.00011537,2]
[408386703,1773540227273,157.84,0.00012499,2]
[408386704,1773540234248,3205.61796456,0.00012489,2]
[408386705,1773540234268,1837.6134124,0.00012489,2]
[408386706,1773540241248,300.0,0.00012498,2]
[408386707,1773540252318,2862.3965876,0.000124,2]
[408386708,1773540252341,3943.18530574,0.000124,2]
[408386709,1773540257096,259.77,0.00012001,2]
[408386710,1773540278995,528.60681779,0.000124,2]
[408386711,1773540279341,268.44787647,0.000124,2]
[408386712,1773540279368,5000.01,0.000124,2]
[408386713,1773540280647,-124.53212152,0.000124,2]
[408386714,1773540301151,300.0,0.00012498,2]
[408386715,1773540301345,1200.0,0.00012498,2]
[408386716,1773540312294,150.0,0.00012002,2]
[408386717,1773540361416,300.0,0.00012498,2]
[408386718,1773540362375,300.0,0.00012498,2]
[408386719,1773540363872,150.0,0.00012498,2]
[408386720,1773540364273,299.269787,0.00012341,2]
[408386722,1773540431515,200.0,0.00012498,2]
[408386723,1773540432759,500.0,0.00012498,2]
[408386724,1773540433408,500.0,0.00012498,2]
[408386725,1773540434021,259.84853228,0.00012498,2]
[408386726,1773540435124,-221.33743998,0.00012499,2]
[408386727,1773540443089,151.0,0.00012498,2]
[408386728,1773540443698,151.0,0.00012498,2]
[408386729,1773540444666,151.0,0.00012498,2]
[408386730,1773540445007,151.0,0.00012498,2]
[408386731,1773540445621,151.0,0.00012498,2]
[408386732,1773540446224,151.0,0.00012498,2]
[408386733,1773540446825,151.0,0.00012498,2]
[408386734,1773540447438,151.0,0.00012498,2]
[408386735,1773540448044,151.0,0.00012498,2]
[408386736,1773540448638,151.0,0.00012498,2]
[408386737,1773540449334,151.0,0.00012498,2]
[408386738,1773540451807,151.0,0.00012498,2]
[408386739,1773540452454,151.0,0.00012498,2]
[408386740,1773540453572,151.0,0.00012498,2]
[408386741,1773540454205,151.0,0.00012498,2]
[408386742,1773540454949,151.0,0.00012498,2]
[408386743,1773540455420,151.0,0.00012498,2]
[408386744,1773540456033,151.0,0.00012498,2]
[408386745,1773540456699,151.0,0.00012498,2]
[408386746,1773540457313,151.0,0.00012498,2]
[408386747,1773540457931,151.0,0.00012498,2]
[408386748,1773540458578,151.0,0.00012498,2]
[408386749,1773540459176,151.0,0.00012498,2]
[408386750,1773540459796,151.0,0.00012498,2]
[408386751,1773540460400,151.0,0.00012498,2]
[408386752,1773540461025,151.0,0.00012498,2]
[408386753,1773540461644,170.45237344,0.00012498,2]
[408386754,1773540475993,-4778.66256002,0.00012499,2]
[408386755,1773540492702,-1411.21,0.00012499,2]
[408386756,1773540492729,-151.0,0.00012499,2]
[408386757,1773540492759,-240.66790923,0.00012499,2]
[408386758,1773540494002,284.36881497,0.00012499,2]
[408386759,1773540510058,559.58,0.00011986,2]
[408386760,1773540514447,-1200.0,0.00012499,2]
[408386761,1773540515363,-536.40401585,0.000125,2]
[408386762,1773540515482,-10000.01,0.000125,2]
[408386763,1773540515612,-10000.01,0.000125,2]
[408386764,1773540517439,-10000.01,0.000125,2]
[408386765,1773540517553,-10000.01,0.000125,2]
[408386766,1773540517698,-10000.01,0.000125,2]
[408386767,1773540517822,-10000.01,0.000125,2]
[408386768,1773540517927,-10000.01,0.000125,2]
[408386769,1773540518052,-10000.01,0.000125,2]
[408386770,1773540518184,-10000.01,0.000125,2]
[408386771,1773540518316,-10000.01,0.000125,2]
[408386772,1773540560352,4718.86624825,0.000124,2]
[408386775,1773540576636,200.0,0.00011961,2]
[408386776,1773540601123,703.55762656,0.00012498,2]
[408386777,1773540601149,496.44237344,0.00012498,2]
[408386778,1773540601551,300.0,0.00012498,2]
[408386779,1773540612072,155.27138697,0.0001249,2]
[408386780,1773540615205,352.641923,0.00012255,2]
[408386790,1773540631776,-300.0,0.00012499,2]
[408386791,1773540631786,-150.0,0.00012499,2]
[408386792,1773540631796,-417.29465335,0.00012499,2]
[408386793,1773540631809,-82.70534665,0.00012499,2]
[408386794,1773540631818,-433.65809691,0.00012499,2]
[408386795,1773540631827,-41.43873644,0.00012499,2]
[408386796,1773540631839,-685.24897399,0.00012499,2]
[408386797,1773540631849,-726.68771043,0.00012499,2]
[408386798,1773540631858,-726.68771043,0.00012499,2]
[408386799,1773540631866,-726.68771043,0.00012499,2]
[408386800,1773540631876,-726.68771043,0.00012499,2]
[408386801,1773540631885,-726.68771043,0.00012499,2]
[408386802,1773540631894,-726.68771043,0.00012499,2]
[408386804,1773540631904,-726.68771043,0.00012499,2]
[408386805,1773540631913,-726.68771043,0.00012499,2]
[408386806,1773540631922,-726.68771043,0.00012499,2]
[408386807,1773540631931,-726.68771043,0.00012499,2]
[408386808,1773540631941,-726.68771043,0.00012499,2]
[408386810,1773540631952,-726.68771043,0.00012499,2]
[408386811,1773540631962,-726.68771043,0.00012499,2]
[408386813,1773540631971,-726.68771043,0.00012499,2]
[408386814,1773540631982,-726.68771043,0.00012499,2]
[408386815,1773540631991,-726.68771043,0.00012499,2]
[408386816,1773540632000,-726.68771043,0.00012499,2]
[408386818,1773540632010,-726.68771043,0.00012499,2]
[408386819,1773540632019,-550.08716259,0.00012499,2]
[408386823,1773540632057,-176.60054784,0.00012499,2]
[408386824,1773540632066,-726.68771043,0.00012499,2]
[408386825,1773540632075,-77.09174183,0.00012499,2]
[408386826,1773540632086,-649.5959686,0.00012499,2]
[408386827,1773540632096,-726.68771043,0.00012499,2]
[408386828,1773540632105,-726.68771043,0.00012499,2]
[408386829,1773540632115,-726.68771043,0.00012499,2]
[408386830,1773540632124,-726.68771043,0.00012499,2]
[408386831,1773540632135,-726.68771043,0.00012499,2]
[408386832,1773540632144,-726.68771043,0.00012499,2]
[408386833,1773540632154,-726.68771043,0.00012499,2]
[408386834,1773540632164,-726.68771043,0.00012499,2]
[408386835,1773540632174,-726.68771043,0.00012499,2]
[408386836,1773540632184,-726.68771043,0.00012499,2]
[408386837,1773540632193,-726.68771043,0.00012499,2]
[408386838,1773540632203,-726.68771043,0.00012499,2]
[408386839,1773540632212,-726.68771043,0.00012499,2]
[408386840,1773540632223,-726.68771043,0.00012499,2]
[408386841,1773540632233,-726.68771043,0.00012499,2]
[408386842,1773540632242,-726.68771043,0.00012499,2]
[408386843,1773540632253,-726.68771043,0.00012499,2]
[408386844,1773540632262,-726.68771043,0.00012499,2]
[408386845,1773540632271,-726.68771043,0.00012499,2]
[408386846,1773540632280,-726.68771043,0.00012499,2]
[408386847,1773540632289,-726.68771043,0.00012499,2]
[408386848,1773540632298,-726.68771043,0.00012499,2]
[408386849,1773540632308,-726.68771043,0.00012499,2]
[408386850,1773540632317,-726.68771043,0.00012499,2]
[408386851,1773540632326,-726.68771043,0.00012499,2]
[408386852,1773540632335,-180.23505995,0.00012499,2]
[408386853,1773540632345,-719.42083332,0.00012499,2]
[408386854,1773540632355,-719.42083332,0.00012499,2]
[408386855,1773540632364,-719.42083332,0.00012499,2]
[408386856,1773540632374,-719.42083332,0.00012499,2]
[408386857,1773540632383,-719.42083332,0.00012499,2]
[408386858,1773540632392,-719.42083332,0.00012499,2]
[408386859,1773540632401,-719.42083332,0.00012499,2]
[408386860,1773540632411,-719.42083332,0.00012499,2]
[408386861,1773540632419,-719.42083332,0.00012499,2]
[408386862,1773540632428,-719.42083332,0.00012499,2]
[408386863,1773540632437,-719.42083332,0.00012499,2]
[408386864,1773540632447,-719.42083332,0.00012499,2]
[408386865,1773540632456,-719.42083332,0.00012499,2]
[408386866,1773540632465,-719.42083332,0.00012499,2]
[408386867,1773540632474,-719.42083332,0.00012499,2]
[408386868,1773540632483,-719.42083332,0.00012499,2]
[408386869,1773540632492,-719.42083332,0.00012499,2]
[408386870,1773540632501,-719.42083332,0.00012499,2]
[408386871,1773540632511,-719.42083332,0.00012499,2]
[408386872,1773540632519,-719.42083332,0.00012499,2]
[408386873,1773540632528,-719.42083332,0.00012499,2]
[408386874,1773540632537,-719.42083332,0.00012499,2]
[408386875,1773540632546,-719.42083332,0.00012499,2]
[408386876,1773540632711,-719.42083332,0.00012499,2]
[408386877,1773540632723,-719.42083332,0.00012499,2]
[408386878,1773540632733,-719.42083332,0.00012499,2]
[408386879,1773540632742,-719.42083332,0.00012499,2]
[408386880,1773540632751,-719.42083332,0.00012499,2]
[408386881,1773540632760,-719.42083332,0.00012499,2]
[408386882,1773540632769,-500.0,0.00012499,2]
[408386883,1773540632778,-719.42083332,0.00012499,2]
[408386884,1773540632787,-719.42083332,0.00012499,2]
[408386885,1773540632796,-233.96247869,0.00012499,2]
[408386886,1773540632805,-174.767326,0.00012499,2]
[408386887,1773540632814,-727.41439812,0.00012499,2]
[408386888,1773540632823,-727.41439812,0.00012499,2]
[408386889,1773540632832,-727.41439812,0.00012499,2]
[408386890,1773540632841,-727.41439812,0.00012499,2]
[408386891,1773540632849,-727.41439812,0.00012499,2]
[408386892,1773540632858,-727.41439812,0.00012499,2]
[408386893,1773540632868,-727.41439812,0.00012499,2]
[408386894,1773540632877,-727.41439812,0.00012499,2]
[408386895,1773540632887,-727.41439812,0.00012499,2]
[408386896,1773540632896,-500.0,0.00012499,2]
[408386897,1773540632905,-500.0,0.00012499,2]
[408386898,1773540632914,-389.71030371,0.00012499,2]
[408386899,1773540632923,-501.641492,0.00012499,2]
[408386900,1773540632932,-252.0,0.00012499,2]
[408386901,1773540632941,-500.0,0.00012499,2]
[408386902,1773540632951,-500.0,0.00012499,2]
[408386903,1773540632959,-500.0,0.00012499,2]
[408386904,1773540632969,-253.40096683,0.00012499,2]
[408386905,1773540632979,-500.0,0.00012499,2]
[408386906,1773540632988,-191.80036162,0.00012499,2]
[408386907,1773540632997,-500.0,0.00012499,2]
[408386908,1773540633007,-500.0,0.00012499,2]
[408386909,1773540633016,-500.0,0.00012499,2]
[408386910,1773540633025,-500.0,0.00012499,2]
[408386911,1773540633033,-500.0,0.00012499,2]
[408386912,1773540633043,-500.0,0.00012499,2]
[408386913,1773540633052,-500.0,0.00012499,2]
[408386914,1773540633061,-500.0,0.00012499,2]
[408386915,1773540633070,-500.0,0.00012499,2]
[408386916,1773540633079,-500.0,0.00012499,2]
[408386917,1773540633087,-500.0,0.00012499,2]
[408386918,1773540633096,-500.0,0.00012499,2]
[408386919,1773540633105,-500.0,0.00012499,2]
[408386920,1773540633115,-500.0,0.00012499,2]
[408386921,1773540633124,-500.0,0.00012499,2]
[408386922,1773540633132,-500.0,0.00012499,2]
[408386923,1773540633143,-500.0,0.00012499,2]
[408386924,1773540633153,-500.0,0.00012499,2]
[408386925,1773540633162,-500.0,0.00012499,2]
[408386926,1773540633172,-500.0,0.00012499,2]
[408386927,1773540633184,-345.18306182,0.00012499,2]
[408386928,1773540633193,-500.0,0.00012499,2]
[408386929,1773540633202,-5000.0,0.000125,2]
[408386930,1773540633211,-280501.0242189,0.000125,2]
[408386931,1773540633365,-12190.34793767,0.000125,2]
[408386932,1773540633376,-71962.69657661,0.000125,2]
[408386933,1773540633391,-1850.0,0.000125,2]
[408386934,1773540633404,-400.1161207,0.000125,2]
[408386935,1773540633415,-339.75260614,0.000125,2]
[408386936,1773540633426,-474.96623053,0.000125,2]
[408386937,1773540633437,-310.55827694,0.000125,2]
[408386938,1773540633448,-334.02485,0.000125,2]
[408386939,1773540633459,-511.41,0.000125,2]
[408386947,1773540637809,-7732.66,0.000125,2]
[408386948,1773540637949,-24.59304884,0.000125,2]
[408386949,1773540638076,-5311.34135106,0.000125,2]
[408386973,1773540638541,4492.09669003,0.000124,2]
[408386974,1773540638564,1632.92701394,0.000124,2]
[408386977,1773540639968,-1953357.98734153,0.000125,2]
[408386978,1773540639978,-309.25743042,0.000125,2]
[408386979,1773540639988,-600.0,0.000125,4]
[408386980,1773540639998,-5000.0,0.00012511,2]
[408386981,1773540640009,-220.87160082,0.00012554,2]
[408386982,1773540640018,-578.98006873,0.000126,2]
[408386983,1773540640028,-1300.0,0.000126,4]
[408386984,1773540640037,-1900.0,0.000127,4]
[408386985,1773540640047,-2600.0,0.000128,4]
[408386986,1773540640056,-155.09691118,0.0001286,2]
[408386987,1773540640066,-574.15668349,0.00012873,2]
[408386988,1773540640075,-500.0,0.00012873,2]
[408386989,1773540640085,-500.0,0.00012873,2]
[408386990,1773540640094,-367.69641233,0.00012873,2]
[408386991,1773540640103,-500.0,0.00012873,2]
[408386992,1773540640113,-3300.0,0.000129,4]
[408386993,1773540640122,-706.0,0.000129,2]
[408386994,1773540640131,-291.0,0.00012925,2]
[408386995,1773540640140,-10483.3384,0.00012927,2]
[408386996,1773540640150,-1000.0,0.00012927,2]
[408386997,1773540640159,-1231.27336338,0.00012928,2]
[408386998,1773540640168,-3081.03799332,0.00012928,2]
[408386999,1773540640178,-2781.35468953,0.00012928,2]
[408387000,1773540640188,-3083.10568328,0.00012928,2]
[408387001,1773540640201,-1659.0,0.00012951,2]
[408387002,1773540640210,-501.05485171,0.00012973,2]
[408387003,1773540640221,-500.0,0.00012973,2]
[408387004,1773540640235,-500.0,0.00012973,2]
[408387005,1773540640245,-685.0,0.00012977,2]
[408387006,1773540640255,-165.0,0.00012991,2]
[408387007,1773540640266,-5638.82810058,0.00013,2]
[408387008,1773540640275,-3398.69503067,0.00013,15]
[408387009,1773540640284,-267.0,0.00013017,2]
[408387010,1773540640294,-1000.0,0.00013021,2]
[408387011,1773540640303,-1000.0,0.00013021,2]
[408387012,1773540640314,-344.0,0.00013043,2]
[408387013,1773540640323,-200.0,0.00013046,2]
[408387014,1773540640333,-5378.62134311,0.0001305,2]
[408387015,1773540640342,-1000.0,0.00013421,2]
[408387016,1773540640351,-1000.0,0.00013421,2]
[408387017,1773540640360,-1000.0,0.00013421,2]
[408387018,1773540640370,-157.84,0.0001346,2]
[408387019,1773540640379,-500.28201641,0.00013521,2]
[408387020,1773540640388,-1000.0,0.00013521,2]
[408387021,1773540640398,-1374.70888613,0.00013568,2]
[408387022,1773540640407,-1500.0,0.00013568,2]
[408387023,1773540640416,-200.0,0.00013594,2]
[408387024,1773540640426,-255.0,0.00013599,2]
[408387025,1773540640438,-500.0,0.00013673,2]
[408387026,1773540640448,-429.01401913,0.00013673,2]
[408387027,1773540640458,-502.19640803,0.00013673,2]
[408387028,1773540640467,-500.0,0.00013673,2]
[408387029,1773540640477,-501.73372857,0.00013673,2]
[408387030,1773540640487,-500.0,0.00013673,2]
[408387031,1773540640497,-332.58199131,0.00013673,2]
[408387032,1773540640507,-446.46468827,0.00013673,2]
[408387033,1773540640516,-500.0,0.00013673,2]
[408387034,1773540640526,-500.0,0.00013673,2]
[408387035,1773540640535,-515.29195413,0.00013698,2]
[408387036,1773540640545,-213.05207057,0.00013698,2]
[408387037,1773540640554,-500.0,0.00013698,2]
[408387038,1773540640563,-500.0,0.00013698,2]
[408387039,1773540640572,-500.0,0.00013698,2]
[408387040,1773540640582,-500.0,0.00013698,2]
[408387041,1773540640591,-500.0,0.00013698,2]
[408387042,1773540640601,-500.0,0.00013698,2]
[408387043,1773540640611,-500.0,0.00013698,2]
[408387044,1773540640621,-500.0,0.00013698,2]
[408387045,1773540640636,-500.0,0.00013698,2]
[408387046,1773540640646,-614.51971294,0.00013698,2]
[408387047,1773540640655,-500.0,0.00013698,2]
[408387048,1773540640664,-500.0,0.00013698,2]
[408387049,1773540640673,-500.0,0.00013698,2]
[408387050,1773540640682,-500.0,0.00013698,2]
[408387051,1773540640691,-500.0,0.00013698,2]
[408387052,1773540640701,-500.0,0.00013698,2]
[408387053,1773540640711,-500.0,0.00013698,2]
[408387054,1773540640722,-500.0,0.00013698,2]
[408387055,1773540640731,-500.0,0.00013698,2]
[408387056,1773540640742,-500.0,0.00013698,2]
[408387057,1773540640751,-500.0,0.00013698,2]
[408387058,1773540640760,-511.07243209,0.00013698,2]
[408387059,1773540640770,-500.0,0.00013698,2]
[408387060,1773540640780,-518.99505939,0.00013698,2]
[408387061,1773540640792,-500.0,0.00013698,2]
[408387062,1773540640802,-500.0,0.00013698,2]
[408387063,1773540640811,-500.0,0.00013698,2]
[408387064,1773540640824,-500.0,0.00013698,2]
[408387065,1773540640833,-568.64936411,0.00013698,2]
[408387066,1773540640842,-503.085157,0.00013698,2]
[408387067,1773540640851,-502.23147236,0.00013698,2]
[408387068,1773540640860,-510.91763486,0.00013698,2]
[408387069,1773540640870,-500.0,0.00013698,2]
[408387070,1773540640879,-539.6385769,0.00013698,2]
[408387071,1773540640888,-507.19541747,0.00013698,2]
[408387072,1773540640898,-515.75184569,0.00013698,2]
[408387073,1773540640907,-512.46285872,0.00013698,2]
[408387074,1773540640918,-500.0,0.00013698,2]
[408387075,1773540640928,-500.0,0.00013698,2]
[408387076,1773540640938,-500.0,0.00013698,2]
[408387077,1773540640947,-500.0,0.00013698,2]
[408387078,1773540640956,-500.0,0.00013698,2]
[408387079,1773540640965,-500.0,0.00013698,2]
[408387080,1773540640975,-500.0,0.00013698,2]
[408387081,1773540640984,-516.10067893,0.00013698,2]
[408387082,1773540640994,-500.0,0.00013698,2]
[408387083,1773540641003,-501.60846751,0.00013698,2]
[408387084,1773540641013,-500.0,0.00013698,2]
[408387085,1773540641024,-507.88347437,0.00013698,2]
[408387086,1773540641033,-500.0,0.00013698,2]
[408387087,1773540641043,-506.80406852,0.00013698,2]
[408387088,1773540641053,-507.79083862,0.00013698,2]
[408387089,1773540641062,-150.99,0.00013699,2]
[408387090,1773540641071,-9999.99,0.00013699,2]
[408387091,1773540641081,-150.99,0.00013699,2]
[408387092,1773540641090,-299.99,0.00013699,2]
[408387093,1773540641099,-985.01,0.00013699,2]
[408387094,1773540641108,-9999.99,0.00013699,2]
[408387095,1773540641117,-499.99,0.00013699,2]
[408387096,1773540641127,-1908.29,0.00013699,2]
[408387097,1773540641136,-319.38,0.00013699,2]
[408387098,1773540641145,-9999.99,0.00013699,2]
[408387099,1773540641154,-3429.67,0.00013699,2]
[408387100,1773540641163,-1308.92,0.00013699,2]
[408387101,1773540641173,-16335.33,0.00013699,2]
[408387102,1773540641183,-501.52594465,0.00013699,2]
[408387103,1773540641196,-502.15081476,0.00013699,2]
[408387104,1773540641205,-500.0,0.00013699,2]
[408387105,1773540641214,-501.32247837,0.00013699,2]
[408387106,1773540641223,-500.0,0.00013699,2]
[408387107,1773540641235,-501.20782157,0.00013699,2]
[408387108,1773540641246,-160.06205431,0.00013699,2]
[408387109,1773540641255,-331.2186495,0.00013699,2]
[408387110,1773540641265,-557.0,0.00013714,2]
[408387111,1773540641275,-420.0,0.00013714,2]
[408387112,1773540641284,-250.0,0.00013748,2]
[408387113,1773540641293,-1680.0,0.00013748,2]
[408387114,1773540641303,-500.0,0.00013749,2]
[408387115,1773540641312,-500.0,0.00013749,2]
[408387116,1773540641322,-177.1147723,0.00013749,2]
[408387117,1773540641331,-250.0,0.00013749,2]
[408387118,1773540641341,-193.0,0.00013749,2]
[408387119,1773540641350,-600.0,0.00013749,2]
[408387120,1773540641360,-600.0,0.00013749,2]
[408387121,1773540641369,-5000.0,0.00013749,2]
[408387122,1773540641378,-250.0,0.00013749,2]
[408387123,1773540641388,-300.0,0.00013749,2]
[408387124,1773540641398,-300.0,0.00013749,2]
[408387125,1773540641407,-300.0,0.00013749,2]
[408387126,1773540641423,-344.63537516,0.00013749,2]
[408387127,1773540641435,-500.0,0.00013749,2]
[408387128,1773540641446,-300.0,0.00013749,2]
[408387129,1773540641456,-600.0,0.00013749,2]
[408387130,1773540641465,-600.0,0.00013749,2]
[408387131,1773540641475,-5000.0,0.00013749,2]
[408387132,1773540641485,-637.113313,0.00013749,2]
[408387133,1773540641688,-300.0,0.00013749,2]
[408387134,1773540641698,-300.0,0.00013749,2]
[408387135,1773540641708,-288.11559145,0.00013749,2]
[408387136,1773540641717,-5000.0,0.00013749,2]
[408387137,1773540641731,-500.0,0.00013844,2]
[408387138,1773540641740,-1500.0,0.00013968,2]
[408387139,1773540641750,-1500.0,0.00013968,2]
[408387140,1773540641760,-1500.0,0.00013968,2]
[408387141,1773540641769,-719.11494189,0.00014068,2]
[408387142,1773540641779,-544.01370364,0.00014116,2]
[408387143,1773540641788,-200.0,0.00014142,2]
[408387144,1773540641797,-1004.617059,0.00014221,2]
[408387145,1773540641807,-1000.0,0.00014221,2]
[408387146,1773540641816,-1000.0,0.00014221,2]
[408387147,1773540641825,-1000.0,0.00014221,2]
[408387148,1773540641835,-1000.0,0.00014221,2]
[408387149,1773540641844,-544.70776731,0.00014247,2]
[408387150,1773540641853,-501.45819966,0.00014247,2]
[408387151,1773540641862,-204.25,0.00014284,2]
[408387152,1773540641871,-1308.92,0.00014384,2]
[408387153,1773540641880,-157.84,0.00014422,2]
[408387154,1773540641890,-501.79136362,0.00014516,2]
[408387155,1773540641899,-2003.29531739,0.00014516,2]
[408387156,1773540641909,-2000.0,0.00014516,2]
[408387157,1773540641918,-239.377726,0.00014592,7]
[408387158,1773540641928,-151.0,0.00014634,2]
[408387159,1773540641938,-151.0,0.00014634,2]
[408387160,1773540641947,-151.0,0.00014634,2]
[408387161,1773540641958,-151.0,0.00014634,2]
[408387162,1773540641969,-151.0,0.00014634,2]
[408387163,1773540641978,-194.079209,0.00014664,7]
[408387164,1773540641988,-176.320961,0.00014664,7]
[408387165,1773540641998,-200.0,0.0001469,2]
[408387166,1773540642009,-1500.0,0.00014768,2]
[408387167,1773540642019,-1500.0,0.00014768,2]
[408387168,1773540642029,-1365.80616418,0.00014768,2]
[408387169,1773540642038,-1500.0,0.00014768,2]
[408387170,1773540642047,-433.0,0.00014799,2]
[408387171,1773540642058,-170.1553629,0.000149,2]
[408387172,1773540642067,-996.89869001,0.00014955,2]
[408387173,1773540642077,-250.0,0.00015,2]
[408387174,1773540642087,-2500.0,0.00015064,2]
[408387175,1773540642096,-1308.92,0.00015068,2]
[408387176,1773540642107,-2351.0,0.00015123,2]
[408387177,1773540642117,-200.0,0.00015238,2]
[408387178,1773540642127,-535.39,0.00015247,2]
[408387179,1773540642137,-2003.06523128,0.00015316,2]
[408387180,1773540642146,-2000.0,0.00015316,2]
[408387181,1773540642155,-2000.0,0.00015316,2]
[408387182,1773540642165,-535.39,0.00015521,2]
[408387183,1773540642175,-1005.33275983,0.00015612,2]
[408387184,1773540642184,-1308.92,0.00015753,2]
[408387185,1773540642198,-200.0,0.00015786,2]
[408387186,1773540642207,-535.39,0.00015795,2]
[408387187,1773540642216,-1505.88899418,0.00015864,2]
[408387188,1773540642225,-2500.0,0.00015864,2]
[408387189,1773540642236,-150.0,0.000159,2]
[408387190,1773540642245,-171.70924483,0.000159,2]
[408387191,1773540642255,-535.39,0.00016069,2]
[408387192,1773540642265,-736.0,0.00016099,2]
[408387193,1773540642275,-1222.51,0.000161,2]
[408387194,1773540642284,-9999.99,0.00016116,2]
[408387195,1773540642293,-880.96425522,0.00016135,2]
[408387196,1773540642306,-490.84375944,0.00016135,2]
[408387197,1773540642315,-500.0,0.00016173,2]
[408387198,1773540642324,-254917.69684319,0.000162,5]
[408387199,1773540642334,-9883.67278859,0.00016235,2]
[408387200,1773540642345,-200.0,0.00016334,2]
[408387201,1773540642354,-495.54,0.00016343,2]
[408387202,1773540642363,-150.0,0.000164,2]
[408387203,1773540642373,-213.0,0.000164,2]
[408387204,1773540642383,-302.46,0.000164,2]
[408387205,1773540642392,-353.5768258,0.000164,2]
[408387206,1773540642403,-1009.1469731,0.00016412,2]
[408387207,1773540642414,-500.0,0.00016438,2]
[408387208,1773540642424,-226.23570669,0.00016438,2]
[408387209,1773540642433,-1308.92,0.00016438,2]
[408387210,1773540642444,-250.0,0.00016515,2]
[408387211,1773540642454,-4718.86624823,0.00016543,2]
[408387212,1773540642464,-3292.0,0.00016635,2]
[408387213,1773540642473,-1000.0,0.00016721,2]
[408387214,1773540642483,-251.1313925,0.00016882,2]
[408387215,1773540642493,-300.0,0.00016921,2]
[408387216,1773540642502,-300.0,0.00016921,2]
[408387217,1773540642513,-9999.99,0.00016922,2]
[408387218,1773540642525,-29357.82,0.00016922,2]
[408387219,1773540642535,-2300.09,0.00016922,2]
[408387221,1773540642546,-1208.06,0.00016922,2]
[408387222,1773540642555,-300.0,0.00017,2]
[408387223,1773540642564,-510.0,0.00017,2]
[408387224,1773540642574,-1500.0,0.00017268,2]
[408387225,1773540642583,-761.0,0.00017511,2]
[408387226,1773540642593,-2000.0,0.00017816,2]
[408387227,1773540642602,-155.02778918,0.0001791,2]
[408387228,1773540642613,-1833.27,0.0001797,2]
[408387229,1773540642622,-287.253271,0.0001824,7]
[408387230,1773540642634,-528.60681773,0.00018258,2]
[408387231,1773540642643,-487.57,0.00018298,2]
[408387232,1773540642654,-4609.0,0.00018298,2]
[408387233,1773540642663,-155.263367,0.0001833,7]
[408387234,1773540642672,-7108.49,0.00018356,2]
[408387235,1773540642682,-2005.48389819,0.00018364,2]
[408387236,1773540642694,-500.0,0.00018507,2]
[408387237,1773540642703,-296.75,0.00018572,2]
[408387238,1773540642713,-500.0,0.000186,2]
[408387239,1773540642722,-500.0,0.000186,2]
[408387240,1773540642732,-500.0,0.000186,2]
[408387242,1773540642742,-500.0,0.000186,2]
[408387243,1773540642751,-500.0,0.000186,2]
[408387244,1773540642760,-500.0,0.000186,2]
[408387245,1773540642769,-500.0,0.000186,2]